[Event "German Bundesliga 2021-22"]
[Site "Germany"]
[Date "2022.03.06"]
[Round "2.6"]
[White "Rietze, Clemens"]
[Black "Johansson, Linus"]
[Result "1-0"]
[ECO "D37"]
[WhiteElo "2279"]
[BlackElo "2473"]
[Annotator "ChessBase"]
[PlyCount "87"]
[EventDate "2022.03.05"]
[EventType "team-tourn"]
[EventCountry "GER"]
[SourceTitle "playchess.com"]
[Source "ChessBase"]
[SourceQuality "1"]
[TimeControl "40/5400+30:1800+30"]

1. d4 {[%emt 0:00:00]} e6 {[%emt 0:00:00]} 2. c4 {[%emt 0:00:00]} d5 {[%emt 0:00:00]} 3. Nf3 {[%emt 0:00:00]} Nf6 {[%emt 0:00:00]} 4. Nc3 {[%emt 0:00:00]} a6 {[%emt 0:00:00]} 5. c5 {[%emt 0:00:00]} b6 {[%emt 0:00:00]} 6. cxb6 {[%emt 0:00:00]} cxb6 {[%emt 0:00:00]} 7. Bf4 {[%emt 0:00:00]} Bd6 {[%emt 0:00:00]} 8. e3 {[%emt 0:00:00]} Bxf4 {[%emt 0:00:00]} 9. exf4 {[%emt 0:00:00]} O-O {[%emt 0:03:22]} 10. Bd3 {[%emt 0:00:00]} b5 {[%emt 0:00:16]} 11. O-O {[%emt 0:02:28]} Nc6 {[%emt 0:01:34]} 12. a4 {[%emt 0:08:08]} b4 {[%emt 0:01:13]} 13. Na2 {[%emt 0:00:36]} Qd6 {[%emt 0:19:37]} 14. Ne5 {[%emt 0:08:11]} Bd7 {[%emt 0:03:35]} 15. Nc1 {[%emt 0:05:27]} Na5 {[%emt 0:03:19]} 16. Nb3 {[%emt 0:17:38]} Nxb3 {[%emt 0:00:26]} 17. Qxb3 {[%emt 0:00:03]} a5 {[%emt 0:01:18]} 18. Rfc1 {[%emt 0:11:09]} Rfc8 {[%emt 0:00:52]} 19. Bb5 {[%emt 0:10:32]} g6 {[%emt 0:07:22]} 20. Qd3 {[%emt 0:02:08]} Rc7 {[%emt 0:13:30]} 21. Bxd7 {[%emt 0:11:11]} Nxd7 {[%emt 0:00:12]} 22. Qb5 {[%emt 0:00:02]} Nxe5 {[%emt 0:00:22]} 23. fxe5 {[%emt 0:00:26]} Qd8 {[%emt 0:00:11]} 24. Rc5 {[%emt 0:02:42]} Rxc5 {[%emt 0:02:28]} 25. dxc5 {[%emt 0:00:21]} Qc7 {[%emt 0:05:59]} 26. c6 {[%emt 0:06:41]} Rb8 {[%emt 0:00:14]} 27. Rc1 {[%emt 0:02:31]} f6 {[%emt 0:12:55]} 28. h4 {[%emt 0:08:46]} fxe5 {[%emt 0:00:24]} 29. Rc5 {[%emt 0:03:08]} Ra8 {[%emt 0:06:27]} 30. Qb7 {[%emt 0:00:45]} Ra7 {[%emt 0:00:22]} 31. Qb5 {[%emt 0:01:03]} Kf7 {[%emt 0:01:19]} 32. h5 {[%emt 0:00:16]} Kf6 {[%emt 0:01:58]} 33. Rc1 {[%emt 0:00:51]} Ra8 {[%emt 0:01:39]} 34. Qc5 {[%emt 0:01:20]} Kg7 {[%emt 0:04:19]} 35. Qe3 {[%emt 0:00:14]} Ra6 {[%emt 0:02:15]} 36. Qc5 {[%emt 0:00:14]} gxh5 {[%emt 0:02:34]} 37. Qb5 {[%emt 0:00:12]} Ra8 {[%emt 0:01:50]} 38. Qe2 {[%emt 0:00:13]} Kg6 {[%emt 0:00:50]} 39. Qb5 {[%emt 0:01:27]} Kf6 {[%emt 0:00:48]} 40. Qe2 {[%emt 0:00:32]} h4 {[%emt 0:02:43]} 41. Qh5 {[%emt 0:00:00]} Ra6 {[%emt 0:00:00]} 42. Qh6+ {[%emt 0:00:00]} Ke7 {[%emt 0:00:00]} 43. Qg7+ {[%emt 0:00:00]} Kd6 {[%emt 0:00:00]} 44. Qf8+ {[%emt 0:00:00]} 1-0

[Event "German Bundesliga 2021-22"]
[Site "Germany"]
[Date "2022.03.06"]
[Round "2.7"]
[White "Lokander, Martin"]
[Black "Dimitrijeski, Kristian"]
[Result "1-0"]
[ECO "D94"]
[WhiteElo "2473"]
[BlackElo "2137"]
[Annotator "ChessBase"]
[PlyCount "71"]
[EventDate "2022.03.05"]
[EventType "team-tourn"]
[EventCountry "GER"]
[SourceTitle "playchess.com"]
[Source "ChessBase"]
[SourceQuality "1"]
[TimeControl "40/5400+30:1800+30"]

1. d4 {[%emt 0:00:00]} d5 {[%emt 0:00:00]} 2. c4 {[%emt 0:00:00]} c6 {[%emt 0:00:00]} 3. Nc3 {[%emt 0:00:00]} Nf6 {[%emt 0:00:00]} 4. Nf3 {[%emt 0:00:00]} a6 {[%emt 0:00:00]} 5. e3 {[%emt 0:00:00]} g6 {[%emt 0:00:00]} 6. Be2 {[%emt 0:00:00]} Bg7 {[%emt 0:00:00]} 7. O-O {[%emt 0:00:00]} O-O {[%emt 0:00:00]} 8. a4 {[%emt 0:00:00]} a5 {[%emt 0:00:00]} 9. b3 {[%emt 0:00:00]} Re8 {[%emt 0:09:22]} 10. Ba3 {[%emt 0:00:43]} Bf5 {[%emt 0:18:23]} 11. cxd5 {[%emt 0:05:34]} Nxd5 {[%emt 0:05:57]} 12. Nxd5 {[%emt 0:01:13]} cxd5 {[%emt 0:01:30]} 13. Bb5 {[%emt 0:00:35]} Bd7 {[%emt 0:01:57]} 14. Qe2 {[%emt 0:04:58]} Nc6 {[%emt 0:04:27]} 15. Rac1 {[%emt 0:00:05]} Rc8 {[%emt 0:02:04]} 16. Bc5 {[%emt 0:00:39]} e6 {[%emt 0:06:44]} 17. h3 {[%emt 0:01:04]} Nb8 {[%emt 0:10:49]} 18. Ne5 {[%emt 0:03:08]} Bxe5 {[%emt 0:06:20]} 19. dxe5 {[%emt 0:00:04]} Bc6 {[%emt 0:03:07]} 20. Bd3 {[%emt 0:03:13]} Nd7 {[%emt 0:01:52]} 21. Bd4 {[%emt 0:00:05]} Qe7 {[%emt 0:05:38]} 22. Qd2 {[%emt 0:01:39]} Ra8 {[%emt 0:04:07]} 23. Rc2 {[%emt 0:01:17]} f6 {[%emt 0:11:25]} 24. exf6 {[%emt 0:01:19]} Nxf6 {[%emt 0:00:06]} 25. Bc3 {[%emt 0:01:01]} Qd8 {[%emt 0:00:49]} 26. f4 {[%emt 0:00:52]} Ne4 {[%emt 0:01:10]} 27. Bxe4 {[%emt 0:00:04]} dxe4 {[%emt 0:00:04]} 28. Qe1 {[%emt 0:02:35]} Qd3 {[%emt 0:02:24]} 29. Rc1 {[%emt 0:01:01]} Bd5 {[%emt 0:01:31]} 30. Bd4 {[%emt 0:01:34]} Rac8 {[%emt 0:03:14]} 31. Qh4 {[%emt 0:00:43]} e5 {[%emt 0:02:03]} 32. Rxc8 {[%emt 0:00:07]} Rxc8 {[%emt 0:00:06]} 33. Bxe5 {[%emt 0:00:44]} Qxe3+ {[%emt 0:00:22]} 34. Kh2 {[%emt 0:00:05]} Qc5 {[%emt 0:01:17]} 35. f5 {[%emt 0:05:14]} Bf7 {[%emt 0:00:40]} 36. Qf6 {[%emt 0:00:16]} 1-0

[Event "German Bundesliga 2021-22"]
[Site "Germany"]
[Date "2022.03.06"]
[Round "2.7"]
[White "Beikert, Guenther"]
[Black "Moehn, Hans"]
[Result "1/2-1/2"]
[ECO "C10"]
[WhiteElo "2369"]
[BlackElo "2360"]
[Annotator "NA"]
[PlyCount "41"]
[EventDate "2022.03.05"]
[EventType "team-tourn"]
[EventCountry "GER"]
[SourceTitle "playchess.com"]
[Source "ChessBase"]
[SourceQuality "1"]
[TimeControl "40/5400+30:1800+30"]

1. e4 {[%emt 0:00:00]} e6 {[%emt 0:00:00]} 2. d4 {[%emt 0:00:00]} d5 {[%emt 0:00:00]} 3. Nc3 {[%emt 0:00:00]} dxe4 {[%emt 0:00:00]} 4. Nxe4 {[%emt 0:00:00]} Bd7 {[%emt 0:00:00]} 5. Nf3 {[%emt 0:00:00]} Bc6 {[%emt 0:00:00]} 6. Bd3 {[%emt 0:00:00]} Nd7 {[%emt 0:00:00]} 7. O-O {[%emt 0:00:00]} Ngf6 {[%emt 0:00:00]} 8. Ned2 {[%emt 0:00:00]} Be7 {[%emt 0:00:00]} 9. Re1 {[%emt 0:00:00]} O-O {[%emt 0:00:00]} 10. a4 {[%emt 0:00:00]} a5 {[%emt 0:00:00]} 11. c3 {[%emt 0:02:22]} b6 {[%emt 0:00:00]} 12. Qe2 {[%emt 0:09:03]} Qc8 {[%emt 0:27:27]} 13. Ne4 {[%emt 0:10:18]} Qb7 {[%emt 0:08:40]} 14. Bg5 {[%emt 0:01:27]} Rfe8 {[%emt 0:04:52]} 15. Bxf6 {[%emt 0:02:03]} Nxf6 {[%emt 0:01:27]} 16. Nxf6+ {[%emt 0:00:10]} Bxf6 {[%emt 0:00:37]} 17. Be4 {[%emt 0:00:07]} Bxe4 {[%emt 0:01:27]} 18. Qxe4 {[%emt 0:00:06]} Qxe4 {[%emt 0:00:13]} 19. Rxe4 {[%emt 0:00:06]} Red8 {[%emt 0:00:34]} 20. Kf1 {[%emt 0:02:06]} Rd5 {[%emt 0:00:42]} 21. Ng1 1/2-1/2

[Event "German Bundesliga 2021-22"]
[Site "Germany"]
[Date "2022.03.06"]
[Round "2.8"]
[White "Koellner, Ruben Gideon"]
[Black "Markgraf, Alexander"]
[Result "0-1"]
[ECO "A80"]
[WhiteElo "2441"]
[BlackElo "2482"]
[Annotator "ChessBase"]
[PlyCount "120"]
[EventDate "2022.03.05"]
[EventType "team-tourn"]
[EventCountry "GER"]
[SourceTitle "playchess.com"]
[Source "ChessBase"]
[SourceQuality "1"]
[TimeControl "40/5400+30:1800+30"]

1. d4 {[%emt 0:00:00]} f5 {[%emt 0:00:00]} 2. Nc3 {[%emt 0:00:00]} Nf6 {[%emt 0:00:00]} 3. Bg5 {[%emt 0:00:00]} d5 {[%emt 0:00:00]} 4. Bxf6 {[%emt 0:00:00]} exf6 {[%emt 0:00:00]} 5. e3 {[%emt 0:00:00]} Be6 {[%emt 0:00:00]} 6. Bd3 {[%emt 0:00:00]} Nc6 {[%emt 0:00:00]} 7. Qf3 {[%emt 0:00:00]} Qd7 {[%emt 0:00:00]} 8. a3 {[%emt 0:00:00]} O-O-O {[%emt 0:00:00]} 9. Nge2 {[%emt 0:00:00]} Ne7 {[%emt 0:08:03]} 10. O-O-O {[%emt 0:00:00]} Kb8 {[%emt 0:03:13]} 11. h4 {[%emt 0:00:00]} h5 {[%emt 0:00:35]} 12. Kb1 {[%emt 0:10:34]} Nc8 {[%emt 0:03:30]} 13. Nf4 {[%emt 0:00:27]} Bf7 {[%emt 0:00:32]} 14. Rc1 {[%emt 0:08:18]} g6 {[%emt 0:14:09]} 15. Ka1 {[%emt 0:06:19]} Ka8 {[%emt 0:09:23]} 16. Rhd1 {[%emt 0:05:58]} a6 {[%emt 0:26:48]} 17. Qe2 {[%emt 0:07:59]} g5 {[%emt 0:02:56]} 18. Nh3 {[%emt 0:00:35]} Rg8 {[%emt 0:03:57]} 19. Nb1 {[%emt 0:04:03]} Nd6 {[%emt 0:05:19]} 20. Nd2 {[%emt 0:08:50]} b5 {[%emt 0:10:24]} 21. b3 {[%emt 0:05:09]} Rb8 {[%emt 0:06:09]} 22. Ka2 {[%emt 0:06:39]} Nc4 {[%emt 0:02:14]} 23. Nb1 {[%emt 0:02:21]} Nd6 {[%emt 0:02:35]} 24. Qe1 {[%emt 0:00:50]} Qc6 {[%emt 0:00:17]} 25. Rd2 {[%emt 0:07:33]} Be7 {[%emt 0:00:36]} 26. Re2 {[%emt 0:00:51]} Qb6 {[%emt 0:00:51]} 27. f3 {[%emt 0:01:06]} c5 {[%emt 0:00:51]} 28. dxc5 {[%emt 0:01:05]} Qxc5 {[%emt 0:00:01]} 29. Qc3 {[%emt 0:01:14]} Qxc3 {[%emt 0:00:32]} 30. Nxc3 {[%emt 0:00:02]} Rbc8 {[%emt 0:00:24]} 31. Kb2 {[%emt 0:00:55]} Rge8 {[%emt 0:00:39]} 32. Rd2 {[%emt 0:01:56]} Kb7 {[%emt 0:01:32]} 33. Bf1 {[%emt 0:01:34]} Rc5 {[%emt 0:00:47]} 34. Nf2 {[%emt 0:04:46]} Rec8 {[%emt 0:00:15]} 35. Ne2 {[%emt 0:00:17]} Bf8 {[%emt 0:00:26]} 36. Nd4 {[%emt 0:01:29]} gxh4 {[%emt 0:00:16]} 37. Nd3 {[%emt 0:00:37]} R5c7 {[%emt 0:00:22]} 38. Nf4 {[%emt 0:01:08]} Re8 {[%emt 0:00:04]} 39. Nde2 {[%emt 0:04:11]} Rxe3 {[%emt 0:01:36]} 40. Nxd5 {[%emt 0:00:27]} Bxd5 {[%emt 0:00:14]} 41. Rxd5 {[%emt 0:30:05]} h3 {[%emt 0:09:27]} 42. gxh3 {[%emt 0:00:00]} Rxf3 {[%emt 0:01:28]} 43. Rxb5+ {[%emt 0:00:00]} Nxb5 {[%emt 0:00:19]} 44. Bg2 {[%emt 0:00:00]} Bxa3+ {[%emt 0:00:10]} 45. Kb1 {[%emt 0:00:00]} Bxc1 {[%emt 0:00:33]} 46. Bxf3+ {[%emt 0:00:00]} Kb6 {[%emt 0:00:15]} 47. Kxc1 {[%emt 0:00:00]} h4 {[%emt 0:01:34]} 48. Kd2 {[%emt 0:00:00]} Kc5 {[%emt 0:01:28]} 49. c3 {[%emt 0:00:00]} a5 {[%emt 0:02:43]} 50. Nf4 {[%emt 0:00:00]} Kd6 {[%emt 0:01:09]} 51. Ne2 {[%emt 0:00:00]} Ke5 {[%emt 0:00:57]} 52. Kd3 {[%emt 0:00:00]} Rd7+ {[%emt 0:01:28]} 53. Kc2 {[%emt 0:00:00]} Rd6 {[%emt 0:03:27]} 54. Bb7 {[%emt 0:00:00]} Na3+ {[%emt 0:01:19]} 55. Kb2 {[%emt 0:00:00]} Rd2+ {[%emt 0:00:53]} 56. Kxa3 {[%emt 0:00:00]} Rxe2 {[%emt 0:00:03]} 57. Ka4 {[%emt 0:00:00]} Ra2+ {[%emt 0:01:21]} 58. Kb5 {[%emt 0:00:00]} Ra3 {[%emt 0:00:22]} 59. b4 {[%emt 0:00:00]} axb4 {[%emt 0:00:07]} 60. cxb4 {[%emt 0:00:00]} Rxh3 {[%emt 0:00:20]} 0-1

[Event "German Bundesliga 2021-22"]
[Site "Germany"]
[Date "2022.03.06"]
[Round "2.8"]
[White "Richter, Philipp"]
[Black "Heinemann, Josefine"]
[Result "0-1"]
[ECO "D42"]
[WhiteElo "2225"]
[BlackElo "2290"]
[Annotator "NA"]
[PlyCount "94"]
[EventDate "2022.03.05"]
[EventType "team-tourn"]
[EventCountry "GER"]
[SourceTitle "playchess.com"]
[Source "ChessBase"]
[SourceQuality "1"]
[TimeControl "40/5400+30:1800+30"]

1. d4 {[%emt 0:00:00]} Nf6 {[%emt 0:00:00]} 2. c4 {[%emt 0:00:00]} e6 {[%emt 0:00:00]} 3. Nf3 {[%emt 0:00:00]} d5 {[%emt 0:00:00]} 4. Nc3 {[%emt 0:00:00]} c5 {[%emt 0:00:00]} 5. cxd5 {[%emt 0:00:00]} Nxd5 {[%emt 0:00:00]} 6. e3 {[%emt 0:00:00]} Nc6 {[%emt 0:00:00]} 7. Bd3 {[%emt 0:00:00]} Be7 {[%emt 0:00:00]} 8. O-O {[%emt 0:00:00]} O-O {[%emt 0:00:00]} 9. a3 {[%emt 0:05:37]} cxd4 {[%emt 0:00:00]} 10. exd4 {[%emt 0:00:14]} Bf6 {[%emt 0:00:00]} 11. Be4 {[%emt 0:02:05]} Nce7 {[%emt 0:05:10]} 12. Qd3 {[%emt 0:07:21]} h6 {[%emt 0:05:36]} 13. Ne5 {[%emt 0:08:30]} Nxc3 {[%emt 0:09:16]} 14. Qxc3 {[%emt 0:01:30]} Nf5 {[%emt 0:00:57]} 15. Be3 {[%emt 0:04:20]} Nxe3 {[%emt 0:06:53]} 16. fxe3 {[%emt 0:00:26]} Rb8 {[%emt 0:05:15]} 17. Rac1 {[%emt 0:07:51]} Bxe5 {[%emt 0:03:32]} 18. dxe5 {[%emt 0:00:16]} b6 {[%emt 0:01:24]} 19. Qc7 {[%emt 0:06:30]} Ba6 {[%emt 0:03:28]} 20. Qxd8 {[%emt 0:26:44]} Rfxd8 {[%emt 0:00:20]} 21. Rfd1 {[%emt 0:00:17]} Rxd1+ {[%emt 0:05:45]} 22. Rxd1 {[%emt 0:00:12]} Bb7 {[%emt 0:00:21]} 23. Bf3 {[%emt 0:02:30]} Bxf3 {[%emt 0:06:51]} 24. gxf3 {[%emt 0:00:11]} Rc8 {[%emt 0:00:22]} 25. Rd2 {[%emt 0:01:56]} g5 {[%emt 0:04:18]} 26. f4 {[%emt 0:03:01]} gxf4 {[%emt 0:05:35]} 27. exf4 {[%emt 0:00:23]} Rc4 {[%emt 0:00:10]} 28. Rf2 {[%emt 0:02:02]} Kg7 {[%emt 0:02:36]} 29. Kg2 {[%emt 0:17:24]} Kg6 {[%emt 0:05:04]} 30. f5+ {[%emt 0:01:02]} exf5 {[%emt 0:00:48]} 31. Rd2 {[%emt 0:00:19]} Re4 {[%emt 0:03:05]} 32. Rd7 {[%emt 0:01:26]} Rxe5 {[%emt 0:01:47]} 33. b4 {[%emt 0:00:43]} a5 {[%emt 0:03:28]} 34. Rb7 {[%emt 0:00:08]} Re6 {[%emt 0:01:50]} 35. bxa5 {[%emt 0:00:10]} bxa5 {[%emt 0:00:04]} 36. Rb5 {[%emt 0:00:26]} a4 {[%emt 0:01:22]} 37. Ra5 {[%emt 0:01:12]} Re4 {[%emt 0:00:44]} 38. Kf2 {[%emt 0:01:47]} Rc4 {[%emt 0:01:36]} 39. Kg2 {[%emt 0:01:10]} h5 {[%emt 0:01:22]} 40. Kf2 {[%emt 0:00:08]} f6 {[%emt 0:02:23]} 41. Kg2 {[%emt 0:30:12]} Kg5 {[%emt 0:30:18]} 42. Ra8 {[%emt 0:00:32]} f4 {[%emt 0:02:37]} 43. Ra5+ {[%emt 0:00:15]} f5 {[%emt 0:02:15]} 44. Ra8 {[%emt 0:00:17]} f3+ {[%emt 0:01:13]} 45. Kg3 {[%emt 0:00:51]} h4+ {[%emt 0:00:34]} 46. Kh3 {[%emt 0:00:08]} Kf4 {[%emt 0:02:04]} 47. Rb8 {[%emt 0:00:29]} Rc1 {[%emt 0:01:16]} 0-1

[Event "German Bundesliga 2021-22"]
[Site "Germany"]
[Date "2022.03.06"]
[Round "2.8"]
[White "Acikel, Mert"]
[Black "Fedorovsky, Michael"]
[Result "0-1"]
[ECO "B11"]
[WhiteElo "2177"]
[BlackElo "2396"]
[Annotator "NA"]
[PlyCount "90"]
[EventDate "2022.03.05"]
[EventType "team-tourn"]
[EventCountry "GER"]
[SourceTitle "playchess.com"]
[Source "ChessBase"]
[SourceQuality "1"]
[TimeControl "40/5400+30:1800+30"]

1. e4 {[%emt 0:00:00]} c6 {[%emt 0:00:00]} 2. Nc3 {[%emt 0:00:00]} d5 {[%emt 0:00:00]} 3. Nf3 {[%emt 0:00:00]} dxe4 {[%emt 0:00:00]} 4. Nxe4 {[%emt 0:00:00]} Nf6 {[%emt 0:00:00]} 5. Qe2 {[%emt 0:00:00]} Nxe4 {[%emt 0:00:00]} 6. Qxe4 {[%emt 0:00:00]} Qd5 {[%emt 0:00:00]} 7. Qh4 {[%emt 0:00:00]} Bf5 {[%emt 0:19:57]} 8. Bc4 {[%emt 0:00:00]} Qd6 {[%emt 0:00:19]} 9. c3 {[%emt 0:01:15]} Bd3 {[%emt 0:12:04]} 10. Bxd3 {[%emt 0:00:38]} Qxd3 {[%emt 0:00:05]} 11. Ne5 {[%emt 0:00:13]} Qd5 {[%emt 0:01:36]} 12. d4 {[%emt 0:02:48]} Qxg2 {[%emt 0:14:39]} 13. Rf1 {[%emt 0:07:38]} Nd7 {[%emt 0:08:49]} 14. Nxd7 {[%emt 0:02:50]} Kxd7 {[%emt 0:00:19]} 15. Be3 {[%emt 0:11:01]} Qd5 {[%emt 0:09:32]} 16. O-O-O {[%emt 0:05:28]} e6 {[%emt 0:00:31]} 17. Kb1 {[%emt 0:02:32]} Be7 {[%emt 0:01:21]} 18. Qf4 {[%emt 0:08:42]} Qf5+ {[%emt 0:00:38]} 19. Qxf5 {[%emt 0:00:05]} exf5 {[%emt 0:00:04]} 20. d5 {[%emt 0:00:07]} g6 {[%emt 0:05:14]} 21. Rd2 {[%emt 0:14:49]} Rhd8 {[%emt 0:05:40]} 22. d6 {[%emt 0:06:02]} Bf6 {[%emt 0:01:11]} 23. c4 {[%emt 0:07:36]} Re8 {[%emt 0:01:05]} 24. Rd3 {[%emt 0:02:09]} Re4 {[%emt 0:03:43]} 25. Rb3 {[%emt 0:13:30]} b6 {[%emt 0:00:18]} 26. c5 {[%emt 0:00:23]} f4 {[%emt 0:04:00]} 27. Bd2 {[%emt 0:00:07]} bxc5 {[%emt 0:07:06]} 28. Rb7+ {[%emt 0:00:31]} Kxd6 {[%emt 0:00:48]} 29. Rd1 {[%emt 0:00:41]} Ke6 {[%emt 0:01:48]} 30. Rc7 {[%emt 0:00:12]} Bd4 {[%emt 0:02:11]} 31. Rxc6+ {[%emt 0:01:56]} Kd7 {[%emt 0:00:15]} 32. Ra6 {[%emt 0:00:35]} Re6 {[%emt 0:01:01]} 33. Ra4 {[%emt 0:00:32]} Kc6 {[%emt 0:01:19]} 34. Rc1 {[%emt 0:03:54]} Kd5 {[%emt 0:00:50]} 35. Rd1 {[%emt 0:03:40]} Kc6 {[%emt 0:00:18]} 36. b4 {[%emt 0:01:07]} cxb4 {[%emt 0:00:46]} 37. Rxb4 {[%emt 0:02:05]} Be5 {[%emt 0:00:45]} 38. Rc4+ {[%emt 0:03:44]} Kb5 {[%emt 0:00:42]} 39. Rb4+ {[%emt 0:02:26]} Kc6 {[%emt 0:00:21]} 40. Rc4+ {[%emt 0:00:20]} Kb5 {[%emt 0:00:33]} 41. Rb4+ {[%emt 0:30:49]} Ka6 {[%emt 0:00:00]} 42. Ra4+ {[%emt 0:00:00]} Kb7 {[%emt 0:00:00]} 43. Ba5 {[%emt 0:00:00]} Rb8 {[%emt 0:00:00]} 44. Bb4 {[%emt 0:00:00]} Ra6 {[%emt 0:00:00]} 45. Rd7+ {[%emt 0:00:00]} Kc8 {[%emt 0:00:00]} 0-1

[Event "German Bundesliga 2021-22"]
[Site "Germany"]
[Date "2022.03.06"]
[Round "2.12"]
[White "Gumularz, Szymon"]
[Black "Horvath, Dominik"]
[Result "1-0"]
[ECO "D45"]
[WhiteElo "2539"]
[BlackElo "2483"]
[Annotator "ChessBase"]
[PlyCount "107"]
[EventDate "2022.03.05"]
[EventType "team-tourn"]
[EventCountry "GER"]
[SourceTitle "playchess.com"]
[Source "ChessBase"]
[SourceQuality "1"]
[TimeControl "40/5400+30:1800+30"]

1. c4 {[%emt 0:00:00]} e6 {[%emt 0:00:00]} 2. Nc3 {[%emt 0:00:00]} d5 {[%emt 0:00:00]} 3. d4 {[%emt 0:00:00]} c6 {[%emt 0:00:00]} 4. e3 {[%emt 0:01:08]} Nf6 {[%emt 0:00:00]} 5. Nf3 {[%emt 0:00:05]} Nbd7 {[%emt 0:00:00]} 6. Be2 {[%emt 0:02:03]} dxc4 {[%emt 0:00:00]} 7. a4 {[%emt 0:01:04]} Qa5 {[%emt 0:02:49]} 8. Bxc4 {[%emt 0:21:54]} b5 {[%emt 0:01:05]} 9. Bd3 {[%emt 0:00:57]} b4 {[%emt 0:00:25]} 10. Ne4 {[%emt 0:01:56]} Ba6 {[%emt 0:06:46]} 11. Nxf6+ {[%emt 0:16:08]} Nxf6 {[%emt 0:00:51]} 12. Bxa6 {[%emt 0:08:54]} Qxa6 {[%emt 0:00:05]} 13. Qe2 {[%emt 0:00:05]} Qxe2+ {[%emt 0:02:01]} 14. Kxe2 {[%emt 0:00:04]} a5 {[%emt 0:14:07]} 15. b3 {[%emt 0:08:48]} c5 {[%emt 0:39:12]} 16. Bb2 {[%emt 0:00:15]} Ne4 {[%emt 0:00:15]} 17. Rac1 {[%emt 0:03:30]} Be7 {[%emt 0:01:24]} 18. Rhd1 {[%emt 0:08:36]} O-O {[%emt 0:00:58]} 19. Ne5 {[%emt 0:08:19]} Rfc8 {[%emt 0:10:58]} 20. f3 {[%emt 0:04:54]} Nf6 {[%emt 0:00:46]} 21. dxc5 {[%emt 0:03:23]} Bxc5 {[%emt 0:00:46]} 22. Rc4 {[%emt 0:00:29]} Rc7 {[%emt 0:10:27]} 23. Rdc1 {[%emt 0:05:27]} Rac8 {[%emt 0:00:04]} 24. Bd4 {[%emt 0:01:09]} Bd6 {[%emt 0:00:09]} 25. Bb6 {[%emt 0:00:37]} Rxc4 {[%emt 0:00:05]} 26. Rxc4 {[%emt 0:00:07]} Rb8 {[%emt 0:03:06]} 27. Bc7 {[%emt 0:00:36]} Bxc7 {[%emt 0:00:07]} 28. Rxc7 {[%emt 0:00:03]} Nd5 {[%emt 0:00:03]} 29. Rxf7 {[%emt 0:02:29]} Rc8 {[%emt 0:00:21]} 30. Kd2 {[%emt 0:00:31]} h5 {[%emt 0:04:53]} 31. Rd7 {[%emt 0:01:16]} Nc3 {[%emt 0:01:53]} 32. e4 {[%emt 0:00:58]} Nb1+ {[%emt 0:00:11]} 33. Ke3 {[%emt 0:00:03]} Rc3+ {[%emt 0:00:07]} 34. Rd3 {[%emt 0:00:07]} Rc2 {[%emt 0:00:03]} 35. Rd1 {[%emt 0:00:58]} Rb2 {[%emt 0:01:02]} 36. Kf4 {[%emt 0:00:48]} Nc3 {[%emt 0:02:15]} 37. Rd8+ {[%emt 0:00:14]} Kh7 {[%emt 0:00:03]} 38. g3 {[%emt 0:00:39]} Rxh2 {[%emt 0:00:26]} 39. Nf7 {[%emt 0:00:36]} Rg2 {[%emt 0:01:43]} 40. Rh8+ {[%emt 0:00:42]} Kg6 {[%emt 0:00:04]} 41. Ne5+ {[%emt 0:30:18]} Kf6 {[%emt 0:30:06]} 42. Rf8+ {[%emt 0:00:00]} Ke7 {[%emt 0:00:00]} 43. Rf7+ {[%emt 0:00:00]} Ke8 {[%emt 0:00:00]} 44. Rxg7 {[%emt 0:00:00]} h4 {[%emt 0:00:00]} 45. g4 {[%emt 0:00:00]} h3 {[%emt 0:00:00]} 46. Rh7 {[%emt 0:00:00]} h2 {[%emt 0:00:00]} 47. Kg5 {[%emt 0:00:00]} Rf2 {[%emt 0:00:00]} 48. Kg6 {[%emt 0:00:00]} Ne2 {[%emt 0:00:00]} 49. Kf6 {[%emt 0:00:00]} Kd8 {[%emt 0:00:00]} 50. g5 {[%emt 0:00:00]} Ng3 {[%emt 0:00:00]} 51. Kxe6 {[%emt 0:00:00]} h1=Q {[%emt 0:00:00]} 52. Rxh1 {[%emt 0:00:00]} Nxh1 {[%emt 0:00:00]} 53. g6 {[%emt 0:00:00]} Rg2 {[%emt 0:00:00]} 54. Ng4 {[%emt 0:00:00]} 1-0

[Event "German Bundesliga 2021-22"]
[Site "Germany"]
[Date "2022.03.06"]
[Round "2.13"]
[White "Andersen, Mads"]
[Black "Lipok, Christoph"]
[Result "1-0"]
[ECO "C50"]
[WhiteElo "2570"]
[BlackElo "2271"]
[Annotator "ChessBase"]
[PlyCount "61"]
[EventDate "2022.03.05"]
[EventType "team-tourn"]
[EventCountry "GER"]
[SourceTitle "playchess.com"]
[Source "ChessBase"]
[SourceQuality "1"]
[TimeControl "40/5400+30:1800+30"]

1. e4 {[%emt 0:00:00]} e5 {[%emt 0:00:00]} 2. Nf3 {[%emt 0:00:00]} Nc6 {[%emt 0:00:00]} 3. Bc4 {[%emt 0:00:00]} Nf6 {[%emt 0:00:00]} 4. d3 {[%emt 0:00:00]} Bc5 {[%emt 0:00:00]} 5. c3 {[%emt 0:00:00]} d6 {[%emt 0:00:00]} 6. O-O {[%emt 0:00:00]} h6 {[%emt 0:00:00]} 7. Re1 {[%emt 0:00:00]} a5 {[%emt 0:00:00]} 8. Bb3 {[%emt 0:00:00]} O-O {[%emt 0:00:00]} 9. h3 {[%emt 0:00:00]} Be6 {[%emt 0:04:16]} 10. Bc2 {[%emt 0:20:20]} Ba7 {[%emt 0:22:50]} 11. d4 {[%emt 0:02:11]} exd4 {[%emt 0:13:17]} 12. Nxd4 {[%emt 0:02:38]} Bd7 {[%emt 0:02:57]} 13. Be3 {[%emt 0:11:21]} Re8 {[%emt 0:01:13]} 14. Nd2 {[%emt 0:03:19]} Nxd4 {[%emt 0:12:46]} 15. cxd4 {[%emt 0:11:31]} Bb5 {[%emt 0:19:10]} 16. a4 {[%emt 0:01:58]} Ba6 {[%emt 0:00:21]} 17. Ra3 {[%emt 0:03:35]} c5 {[%emt 0:05:35]} 18. dxc5 {[%emt 0:07:31]} Bxc5 {[%emt 0:00:15]} 19. Bxc5 {[%emt 0:01:49]} dxc5 {[%emt 0:00:04]} 20. e5 {[%emt 0:01:18]} Nd5 {[%emt 0:01:51]} 21. Rg3 {[%emt 0:04:24]} Nf4 {[%emt 0:03:26]} 22. Qg4 {[%emt 0:07:01]} Nh5 {[%emt 0:01:10]} 23. Qxh5 {[%emt 0:05:57]} Qxd2 {[%emt 0:00:08]} 24. Re4 {[%emt 0:00:58]} Qxc2 {[%emt 0:02:12]} 25. Qxh6 {[%emt 0:02:59]} Qd1+ {[%emt 0:02:54]} 26. Kh2 {[%emt 0:00:11]} g6 {[%emt 0:00:38]} 27. Rxg6+ {[%emt 0:00:48]} fxg6 {[%emt 0:00:36]} 28. Qxg6+ {[%emt 0:00:08]} Kf8 {[%emt 0:00:17]} 29. Rf4+ {[%emt 0:00:16]} Ke7 {[%emt 0:00:28]} 30. Rf7+ {[%emt 0:00:10]} Kd8 {[%emt 0:00:51]} 31. Qb6+ {[%emt 0:00:08]} 1-0